[Event "30th Cracovia Festival-A 2019"]
[Site "Krakow"]
[Date "2019.12.30"]
[Round "5.24"]
[White "Szpar, Milosz"]
[Black "Zaleski, Lukasz"]
[Result "1-0"]
[ECO "A38"]
[WhiteElo "2291"]
[BlackElo "2207"]
[Annotator "NA"]
[PlyCount "87"]
[EventDate "2019.12.27"]
[EventCountry "POL"]
[SourceTitle "playchess.com"]
[Source "ChessBase"]
[SourceQuality "1"]
[TimeControl "40/5400+30:1800+30"]

1. Nf3 {[%emt 0:00:00]} Nf6 {[%emt 0:02:21]} 2. c4 {[%emt 0:00:09]} c5 {[%emt 0:00:44]} 3. g3 {[%emt 0:00:52]} g6 {[%emt 0:01:01]} 4. Bg2 {[%emt 0:00:36]} Bg7 {[%emt 0:00:05]} 5. Nc3 {[%emt 0:00:20]} O-O {[%emt 0:01:28]} 6. O-O {[%emt 0:03:40]} Nc6 {[%emt 0:03:11]} 7. d3 {[%emt 0:02:23]} a6 {[%emt 0:12:36]} 8. h3 {[%emt 0:05:27]} Rb8 {[%emt 0:03:36]} 9. Be3 {[%emt 0:04:57]} d6 {[%emt 0:00:35]} 10. d4 {[%emt 0:04:46]} cxd4 {[%emt 0:09:54]} 11. Nxd4 {[%emt 0:00:11]} Bd7 {[%emt 0:02:15]} 12. Nb3 {[%emt 0:03:42]} Ne5 {[%emt 0:08:58]} 13. c5 {[%emt 0:01:07]} dxc5 {[%emt 0:03:27]} 14. Nxc5 {[%emt 0:07:48]} Bc6 {[%emt 0:03:45]} 15. Bxc6 {[%emt 0:14:51]} Nxc6 {[%emt 0:02:45]} 16. Qa4 {[%emt 0:06:45]} Qc8 {[%emt 0:07:02]} 17. Qh4 {[%emt 0:01:01]} Rd8 {[%emt 0:10:38]} 18. Rfd1 {[%emt 0:03:01]} Nd7 {[%emt 0:14:10]} 19. N5e4 {[%emt 0:05:16]} Nf6 {[%emt 0:01:32]} 20. Nc5 {[%emt 0:07:23]} Qf5 {[%emt 0:02:23]} 21. g4 {[%emt 0:02:23]} Qe5 {[%emt 0:02:17]} 22. g5 {[%emt 0:01:13]} Nd5 {[%emt 0:00:17]} 23. Nxd5 {[%emt 0:01:16]} Rxd5 {[%emt 0:00:06]} 24. Nd7 {[%emt 0:00:21]} Rxd7 {[%emt 0:02:36]} 25. Rxd7 {[%emt 0:00:06]} Qxb2 {[%emt 0:00:08]} 26. Rad1 {[%emt 0:01:03]} Qxe2 {[%emt 0:00:45]} 27. R7d2 {[%emt 0:03:45]} Qf3 {[%emt 0:00:14]} 28. Qg4 {[%emt 0:00:48]} Qxg4+ {[%emt 0:01:05]} 29. hxg4 {[%emt 0:00:08]} Be5 {[%emt 0:01:12]} 30. f4 {[%emt 0:01:14]} Bd6 {[%emt 0:00:12]} 31. Kf2 {[%emt 0:02:39]} b5 {[%emt 0:00:03]} 32. Kf3 {[%emt 0:00:35]} Na5 {[%emt 0:00:24]} 33. Rh2 {[%emt 0:01:36]} Nc4 {[%emt 0:01:58]} 34. Rdh1 {[%emt 0:01:53]} Nxe3 {[%emt 0:00:15]} 35. Rxh7 {[%emt 0:02:32]} f5 {[%emt 0:00:05]} 36. gxf6 {[%emt 0:00:31]} exf6 {[%emt 0:00:22]} 37. Kxe3 {[%emt 0:00:39]} f5 {[%emt 0:01:23]} 38. gxf5 {[%emt 0:02:16]} gxf5 {[%emt 0:00:24]} 39. Rh8+ {[%emt 0:01:28]} Kf7 {[%emt 0:00:10]} 40. R1h7+ {[%emt 0:00:00]} Kg6 {[%emt 0:00:00]} 41. Rh6+ {[%emt 0:06:51]} Kg7 {[%emt 0:00:22]} 42. Rxb8 {[%emt 0:00:54]} Bc5+ {[%emt 0:00:04]} 43. Kf3 {[%emt 0:00:19]} Kxh6 {[%emt 0:00:04]} 44. Ra8 {[%emt 0:00:12]} 1-0

[Event "30th Cracovia Festival-A 2019"]
[Site "Krakow"]
[Date "2020.01.03"]
[Round "8.1"]
[White "Gumularz, Szymon"]
[Black "Girish, A. Koushik"]
[Result "1/2-1/2"]
[ECO "A13"]
[WhiteElo "2493"]
[BlackElo "2506"]
[Annotator "ChessBase"]
[PlyCount "47"]
[EventDate "2019.12.27"]
[EventCountry "POL"]
[SourceTitle "playchess.com"]
[Source "ChessBase"]
[SourceQuality "1"]
[TimeControl "40/5400+30:1800+30"]

1. c4 {[%emt 0:00:01]} e6 {[%emt 0:00:03]} 2. Nc3 {[%emt 0:01:21]} d5 {[%emt 0:00:13]} 3. d4 {[%emt 0:00:05]} Bb4 {[%emt 0:00:06]} 4. cxd5 {[%emt 0:01:11]} exd5 {[%emt 0:01:10]} 5. Bf4 {[%emt 0:00:35]} c6 {[%emt 0:01:13]} 6. e3 {[%emt 0:07:58]} Ne7 {[%emt 0:06:07]} 7. Bd3 {[%emt 0:04:54]} Bf5 {[%emt 0:03:11]} 8. Nge2 {[%emt 0:04:08]} O-O {[%emt 0:01:47]} 9. Rc1 {[%emt 0:03:00]} Bd6 {[%emt 0:05:35]} 10. Bg3 {[%emt 0:00:39]} Bxd3 {[%emt 0:05:07]} 11. Qxd3 {[%emt 0:00:12]} Na6 {[%emt 0:00:21]} 12. O-O {[%emt 0:03:26]} Nc7 {[%emt 0:03:50]} 13. Na4 {[%emt 0:07:02]} Ne6 {[%emt 0:09:33]} 14. b4 {[%emt 0:22:19]} b6 {[%emt 0:08:53]} 15. b5 {[%emt 0:11:15]} Bxg3 {[%emt 0:02:40]} 16. hxg3 {[%emt 0:00:51]} Qd6 {[%emt 0:06:28]} 17. bxc6 {[%emt 0:01:21]} Rfc8 {[%emt 0:01:14]} 18. Rc2 {[%emt 0:02:37]} Rxc6 {[%emt 0:00:42]} 19. Rfc1 {[%emt 0:00:15]} Rac8 {[%emt 0:00:27]} 20. Rxc6 {[%emt 0:00:29]} Rxc6 {[%emt 0:00:06]} 21. Rxc6 {[%emt 0:00:20]} Qxc6 {[%emt 0:00:08]} 22. Nac3 {[%emt 0:03:55]} Nc7 {[%emt 0:03:33]} 23. a4 {[%emt 0:03:40]} a6 {[%emt 0:01:03]} 24. Qb1 {[%emt 0:06:42]} 1/2-1/2

[Event "30th Cracovia Festival-A 2019"]
[Site "Krakow"]
[Date "2020.01.03"]
[Round "8.7"]
[White "Zylka, Stanislaw"]
[Black "Jarmula, Lukasz"]
[Result "1/2-1/2"]
[ECO "B52"]
[WhiteElo "2334"]
[BlackElo "2466"]
[Annotator "ChessBase"]
[PlyCount "68"]
[EventDate "2019.12.27"]
[EventCountry "POL"]
[SourceTitle "playchess.com"]
[Source "ChessBase"]
[SourceQuality "1"]
[TimeControl "40/5400+30:1800+30"]

1. e4 {[%emt 0:00:00]} c5 {[%emt 0:00:00]} 2. Nf3 {[%emt 0:00:00]} d6 {[%emt 0:00:00]} 3. Bb5+ {[%emt 0:00:00]} Bd7 {[%emt 0:01:22]} 4. c4 {[%emt 0:00:00]} Bxb5 {[%emt 0:00:20]} 5. cxb5 {[%emt 0:00:07]} Nf6 {[%emt 0:00:05]} 6. Nc3 {[%emt 0:00:17]} g6 {[%emt 0:00:06]} 7. d4 {[%emt 0:00:43]} cxd4 {[%emt 0:00:08]} 8. Nxd4 {[%emt 0:00:41]} Bg7 {[%emt 0:00:07]} 9. O-O {[%emt 0:00:29]} O-O {[%emt 0:00:09]} 10. Re1 {[%emt 0:01:55]} Nbd7 {[%emt 0:08:24]} 11. Bg5 {[%emt 0:03:09]} h6 {[%emt 0:05:30]} 12. Bh4 {[%emt 0:02:17]} Qb6 {[%emt 0:04:55]} 13. Nc2 {[%emt 0:01:14]} e6 {[%emt 0:02:42]} 14. Qd2 {[%emt 0:11:26]} g5 {[%emt 0:03:02]} 15. Bg3 {[%emt 0:00:21]} Ne5 {[%emt 0:00:06]} 16. Na3 {[%emt 0:01:26]} Nh5 {[%emt 0:03:54]} 17. Red1 {[%emt 0:06:48]} Rfd8 {[%emt 0:07:19]} 18. Rac1 {[%emt 0:02:50]} Qa5 {[%emt 0:03:14]} 19. Qe2 {[%emt 0:08:18]} Nf4 {[%emt 0:03:51]} 20. Bxf4 {[%emt 0:00:49]} gxf4 {[%emt 0:00:08]} 21. Nc2 {[%emt 0:04:08]} Rac8 {[%emt 0:02:39]} 22. Nd4 {[%emt 0:07:56]} Nc4 {[%emt 0:03:54]} 23. a3 {[%emt 0:07:23]} a6 {[%emt 0:07:07]} 24. h3 {[%emt 0:10:37]} axb5 {[%emt 0:04:35]} 25. Ncxb5 {[%emt 0:02:24]} Nb6 {[%emt 0:02:32]} 26. Rxc8 {[%emt 0:00:45]} Nxc8 {[%emt 0:00:27]} 27. Qg4 {[%emt 0:01:57]} Kh8 {[%emt 0:03:29]} 28. Qh4 {[%emt 0:02:29]} Rf8 {[%emt 0:07:44]} 29. b4 {[%emt 0:06:05]} Qa6 {[%emt 0:04:23]} 30. Rc1 {[%emt 0:01:49]} Qb6 {[%emt 0:03:52]} 31. Rc4 {[%emt 0:04:29]} Qa6 {[%emt 0:01:59]} 32. Rc7 {[%emt 0:01:14]} Qb6 {[%emt 0:00:39]} 33. Rc4 {[%emt 0:00:28]} Qa6 {[%emt 0:01:24]} 34. Rc7 {[%emt 0:00:40]} Qb6 {[%emt 0:00:22]} 1/2-1/2

[Event "30th Cracovia Festival-A 2019"]
[Site "Krakow"]
[Date "2020.01.03"]
[Round "8.8"]
[White "Brodowski, Piotr"]
[Black "Kruglyakov, Pavlo"]
[Result "1/2-1/2"]
[ECO "A37"]
[WhiteElo "2445"]
[BlackElo "2357"]
[Annotator "ChessBase"]
[PlyCount "133"]
[EventDate "2019.12.27"]
[EventCountry "POL"]
[SourceTitle "playchess.com"]
[Source "ChessBase"]
[SourceQuality "1"]
[TimeControl "40/5400+30:1800+30"]

1. c4 {[%emt 0:00:00]} c5 {[%emt 0:06:42]} 2. Nc3 {[%emt 0:00:11]} Nc6 {[%emt 0:00:59]} 3. g3 {[%emt 0:00:15]} g6 {[%emt 0:00:17]} 4. Bg2 {[%emt 0:00:10]} Bg7 {[%emt 0:00:06]} 5. Nf3 {[%emt 0:01:06]} e5 {[%emt 0:00:29]} 6. O-O {[%emt 0:01:12]} Nge7 {[%emt 0:00:16]} 7. d3 {[%emt 0:00:33]} d6 {[%emt 0:03:32]} 8. Bg5 {[%emt 0:01:10]} h6 {[%emt 0:03:58]} 9. Bxe7 {[%emt 0:00:14]} Nxe7 {[%emt 0:02:35]} 10. Ne1 {[%emt 0:00:37]} a6 {[%emt 0:21:15]} 11. Nc2 {[%emt 0:02:55]} Rb8 {[%emt 0:02:48]} 12. a4 {[%emt 0:04:52]} O-O {[%emt 0:02:56]} 13. Ne3 {[%emt 0:04:21]} f5 {[%emt 0:03:02]} 14. Ned5 {[%emt 0:05:57]} Nc6 {[%emt 0:00:07]} 15. e3 {[%emt 0:06:51]} Kh7 {[%emt 0:01:30]} 16. Qd2 {[%emt 0:08:24]} Be6 {[%emt 0:02:41]} 17. Rab1 {[%emt 0:03:58]} a5 {[%emt 0:07:49]} 18. f4 {[%emt 0:09:32]} exf4 {[%emt 0:04:58]} 19. Nxf4 {[%emt 0:06:45]} Bf7 {[%emt 0:03:31]} 20. Bd5 {[%emt 0:01:59]} Qd7 {[%emt 0:02:27]} 21. Bxf7 {[%emt 0:08:30]} Rxf7 {[%emt 0:00:12]} 22. Ncd5 {[%emt 0:05:29]} Re8 {[%emt 0:01:42]} 23. Rf2 {[%emt 0:05:10]} Qd8 {[%emt 0:01:57]} 24. Rbf1 {[%emt 0:00:48]} Ne5 {[%emt 0:00:12]} 25. h3 {[%emt 0:02:50]} h5 {[%emt 0:06:51]} 26. Ng2 {[%emt 0:02:41]} Bh6 {[%emt 0:01:20]} 27. Qd1 {[%emt 0:02:39]} Ref8 {[%emt 0:01:03]} 28. b3 {[%emt 0:00:50]} Qd7 {[%emt 0:05:43]} 29. d4 {[%emt 0:01:18]} cxd4 {[%emt 0:02:14]} 30. exd4 {[%emt 0:00:07]} Nc6 {[%emt 0:00:13]} 31. Ndf4 {[%emt 0:03:43]} d5 {[%emt 0:06:26]} 32. Nxd5 {[%emt 0:00:38]} Bg7 {[%emt 0:00:43]} 33. Kh1 {[%emt 0:03:08]} Qd6 {[%emt 0:01:20]} 34. Rf4 {[%emt 0:01:34]} Bh6 {[%emt 0:00:40]} 35. R4f3 {[%emt 0:00:12]} Bg7 {[%emt 0:00:09]} 36. Rd3 {[%emt 0:00:22]} Re8 {[%emt 0:03:46]} 37. g4 {[%emt 0:01:37]} hxg4 {[%emt 0:00:48]} 38. hxg4 {[%emt 0:00:05]} Re4 {[%emt 0:01:08]} 39. gxf5 {[%emt 0:00:32]} Bxd4 {[%emt 0:00:32]} 40. f6 {[%emt 0:00:00]} Kg8 {[%emt 0:00:00]} 41. Rh3 {[%emt 0:09:07]} Qd7 {[%emt 0:11:13]} 42. Ngf4 {[%emt 0:07:27]} Rh7 {[%emt 0:01:22]} 43. Qf3 {[%emt 0:03:27]} Rxh3+ {[%emt 0:03:37]} 44. Nxh3 {[%emt 0:01:35]} Rh4 {[%emt 0:02:57]} 45. f7+ {[%emt 0:01:49]} Kf8 {[%emt 0:00:12]} 46. Ndf4 {[%emt 0:00:17]} Ne5 {[%emt 0:01:14]} 47. Qg3 {[%emt 0:01:57]} Rg4 {[%emt 0:05:50]} 48. Ng5 {[%emt 0:02:35]} Qc6+ {[%emt 0:07:16]} 49. Kh2 {[%emt 0:01:23]} Rxg5 {[%emt 0:01:16]} 50. Qxg5 {[%emt 0:00:15]} Nf3+ {[%emt 0:00:05]} 51. Rxf3 {[%emt 0:00:08]} Qxf3 {[%emt 0:00:02]} 52. Qd8+ {[%emt 0:00:26]} Kxf7 {[%emt 0:00:04]} 53. Qxd4 {[%emt 0:01:54]} Qxb3 {[%emt 0:00:02]} 54. Nd5 {[%emt 0:00:48]} Qf3 {[%emt 0:00:50]} 55. Qf4+ {[%emt 0:01:41]} Qxf4+ {[%emt 0:00:04]} 56. Nxf4 {[%emt 0:00:04]} Kf6 {[%emt 0:01:09]} 57. Nd3 {[%emt 0:05:09]} Kf5 {[%emt 0:00:29]} 58. Nc5 {[%emt 0:01:56]} b6 {[%emt 0:00:15]} 59. Nb3 {[%emt 0:00:25]} Ke4 {[%emt 0:01:28]} 60. Kg3 {[%emt 0:00:08]} Kd3 {[%emt 0:01:01]} 61. Nxa5 {[%emt 0:00:06]} Kd4 {[%emt 0:00:29]} 62. Nc6+ {[%emt 0:03:52]} Kxc4 {[%emt 0:00:10]} 63. Kf4 {[%emt 0:00:21]} Kb3 {[%emt 0:00:23]} 64. a5 {[%emt 0:00:04]} bxa5 {[%emt 0:00:04]} 65. Nxa5+ {[%emt 0:00:02]} Ka4 {[%emt 0:00:08]} 66. Kg5 {[%emt 0:00:02]} Kxa5 {[%emt 0:00:04]} 67. Kxg6 {[%emt 0:00:03]} 1/2-1/2

[Event "30th Cracovia Festival-A 2019"]
[Site "Krakow"]
[Date "2020.01.03"]
[Round "8.9"]
[White "Kopylov, Daniel"]
[Black "Grinev, Valeriy"]
[Result "1/2-1/2"]
[ECO "B48"]
[WhiteElo "2294"]
[BlackElo "2441"]
[Annotator "ChessBase"]
[PlyCount "164"]
[EventDate "2019.12.27"]
[EventCountry "POL"]
[SourceTitle "playchess.com"]
[Source "ChessBase"]
[SourceQuality "1"]
[TimeControl "40/5400+30:1800+30"]

1. e4 {[%emt 0:00:00]} c5 {[%emt 0:07:44]} 2. Nf3 {[%emt 0:00:00]} Nc6 {[%emt 0:01:26]} 3. d4 {[%emt 0:00:31]} cxd4 {[%emt 0:00:06]} 4. Nxd4 {[%emt 0:00:09]} e6 {[%emt 0:00:06]} 5. Nc3 {[%emt 0:01:46]} Qc7 {[%emt 0:00:06]} 6. Be3 {[%emt 0:00:49]} a6 {[%emt 0:00:05]} 7. Qf3 {[%emt 0:01:17]} Nf6 {[%emt 0:00:08]} 8. O-O-O {[%emt 0:06:27]} Ne5 {[%emt 0:00:06]} 9. Qg3 {[%emt 0:02:19]} b5 {[%emt 0:00:23]} 10. f4 {[%emt 0:04:08]} Neg4 {[%emt 0:00:08]} 11. Bg1 {[%emt 0:03:47]} h5 {[%emt 0:00:35]} 12. e5 {[%emt 0:07:05]} b4 {[%emt 0:00:32]} 13. Na4 {[%emt 0:01:02]} Nd5 {[%emt 0:00:11]} 14. h3 {[%emt 0:10:33]} Nh6 {[%emt 0:00:15]} 15. f5 {[%emt 0:00:42]} Bb7 {[%emt 0:03:20]} 16. Bd3 {[%emt 0:05:52]} Be7 {[%emt 0:01:10]} 17. Nb3 {[%emt 0:02:49]} h4 {[%emt 0:14:42]} 18. Qe1 {[%emt 0:08:16]} Nxf5 19. Bxf5 {[%emt 0:06:05]} exf5 {[%emt 0:06:23]} 20. Bc5 {[%emt 0:00:53]} Rc8 {[%emt 0:16:34]} 21. Qf2 {[%emt 0:01:18]} Qc6 {[%emt 0:12:58]} 22. Bxe7 {[%emt 0:06:57]} Nxe7 {[%emt 0:00:10]} 23. Nac5 {[%emt 0:03:46]} Qxg2 {[%emt 0:05:26]} 24. Qd4 {[%emt 0:00:42]} Qc6 {[%emt 0:06:24]} 25. Rhg1 {[%emt 0:04:28]} Qh6+ {[%emt 0:00:08]} 26. Kb1 {[%emt 0:00:52]} Bd5 {[%emt 0:00:08]} 27. Qxb4 {[%emt 0:02:48]} Qc6 {[%emt 0:01:41]} 28. c4 {[%emt 0:02:47]} Be6 {[%emt 0:02:20]} 29. Rxg7 {[%emt 0:02:35]} a5 {[%emt 0:04:06]} 30. Qxa5 {[%emt 0:08:01]} Bxc4 {[%emt 0:00:26]} 31. Rxd7 {[%emt 0:03:01]} Bxb3 {[%emt 0:03:39]} 32. axb3 {[%emt 0:00:51]} Qh1+ {[%emt 0:00:51]} 33. Ka2 {[%emt 0:00:51]} Qa8 {[%emt 0:06:50]} 34. Ra7 {[%emt 0:02:38]} Qd5 {[%emt 0:00:06]} 35. Nb7 {[%emt 0:00:47]} Kf8 {[%emt 0:01:09]} 36. Qxd5 {[%emt 0:00:34]} Nxd5 {[%emt 0:00:08]} 37. Rg5 {[%emt 0:00:14]} Nb4+ {[%emt 0:01:47]} 38. Ka3 {[%emt 0:00:26]} Nc6 {[%emt 0:00:07]} 39. Ra6 {[%emt 0:00:15]} Nd4 {[%emt 0:00:45]} 40. Nd6 {[%emt 0:00:00]} Rb8 {[%emt 0:00:00]} 41. Ra4 {[%emt 0:14:38]} Rxb3+ {[%emt 0:07:26]} 42. Ka2 {[%emt 0:00:48]} Rg3 {[%emt 0:00:05]} 43. Rxf5 {[%emt 0:13:18]} Nxf5 {[%emt 0:05:49]} 44. Nxf5 {[%emt 0:00:01]} Kg8 {[%emt 0:00:25]} 45. Nxg3 {[%emt 0:00:17]} hxg3 {[%emt 0:00:05]} 46. Rg4+ {[%emt 0:00:10]} Kf8 {[%emt 0:00:44]} 47. Rxg3 {[%emt 0:00:07]} Ke7 {[%emt 0:00:29]} 48. Kb3 {[%emt 0:02:34]} Ke6 {[%emt 0:00:05]} 49. Re3 {[%emt 0:00:34]} Rc8 {[%emt 0:00:18]} 50. Kb4 {[%emt 0:00:59]} Kd5 {[%emt 0:00:09]} 51. Rf3 {[%emt 0:01:43]} Rc7 {[%emt 0:00:49]} 52. Rf5 {[%emt 0:00:18]} Rb7+ {[%emt 0:01:52]} 53. Kc3 {[%emt 0:00:42]} Rc7+ {[%emt 0:00:05]} 54. Kd3 {[%emt 0:00:12]} Rb7 {[%emt 0:00:06]} 55. Kc2 {[%emt 0:00:07]} Rc7+ {[%emt 0:00:06]} 56. Kb1 {[%emt 0:00:04]} Rb7 {[%emt 0:00:05]} 57. h4 {[%emt 0:01:26]} Ke4 {[%emt 0:00:23]} 58. Rg5 {[%emt 0:00:51]} Kf4 {[%emt 0:01:55]} 59. Kc2 {[%emt 0:00:22]} Rc7+ {[%emt 0:00:07]} 60. Kd3 {[%emt 0:00:08]} Rb7 {[%emt 0:00:12]} 61. Kc3 {[%emt 0:00:27]} Rc7+ {[%emt 0:00:18]} 62. Kd4 {[%emt 0:00:30]} Rb7 {[%emt 0:00:26]} 63. Rg2 {[%emt 0:01:53]} Rd7+ {[%emt 0:00:15]} 64. Kc5 {[%emt 0:00:16]} Kxe5 {[%emt 0:00:06]} 65. Re2+ {[%emt 0:01:03]} Kf4 {[%emt 0:00:19]} 66. b4 {[%emt 0:00:29]} f5 {[%emt 0:00:41]} 67. Kc6 {[%emt 0:00:25]} Rh7 {[%emt 0:00:13]} 68. Rf2+ {[%emt 0:00:45]} Kg4 {[%emt 0:00:26]} 69. Rg2+ {[%emt 0:00:13]} Kf3 {[%emt 0:00:30]} 70. Rg5 {[%emt 0:00:23]} f4 {[%emt 0:00:08]} 71. b5 {[%emt 0:00:43]} Rxh4 {[%emt 0:00:20]} 72. b6 {[%emt 0:00:11]} Rh6+ {[%emt 0:00:38]} 73. Kc7 {[%emt 0:00:17]} Rh7+ {[%emt 0:00:07]} 74. Kc8 {[%emt 0:00:18]} Rh8+ {[%emt 0:00:07]} 75. Kc7 {[%emt 0:00:04]} Ke4 {[%emt 0:00:31]} 76. Rg7 {[%emt 0:00:23]} f3 {[%emt 0:00:08]} 77. Re7+ {[%emt 0:00:25]} Kd3 {[%emt 0:00:21]} 78. Rf7 {[%emt 0:00:06]} Ke2 {[%emt 0:00:06]} 79. b7 {[%emt 0:00:09]} f2 {[%emt 0:00:05]} 80. b8=Q {[%emt 0:00:17]} Rxb8 {[%emt 0:00:06]} 81. Kxb8 {[%emt 0:00:04]} f1=Q {[%emt 0:00:07]} 82. Rxf1 {[%emt 0:00:03]} Kxf1 {[%emt 0:00:06]} 1/2-1/2

[Event "30th Cracovia Festival-A 2019"]
[Site "Krakow"]
[Date "2020.01.03"]
[Round "8.11"]
[White "Kozak, Antoni"]
[Black "Belous, Mikhail"]
[Result "1/2-1/2"]
[ECO "E15"]
[WhiteElo "2372"]
[BlackElo "2349"]
[Annotator "NA"]
[PlyCount "63"]
[EventDate "2019.12.27"]
[EventCountry "POL"]
[SourceTitle "playchess.com"]
[Source "ChessBase"]
[SourceQuality "1"]
[TimeControl "40/5400+30:1800+30"]

1. d4 {[%emt 0:00:00]} Nf6 {[%emt 0:00:00]} 2. c4 {[%emt 0:00:00]} e6 {[%emt 0:00:11]} 3. Nf3 {[%emt 0:03:41]} b6 {[%emt 0:00:33]} 4. g3 {[%emt 0:00:07]} Bb7 {[%emt 0:08:31]} 5. Bg2 {[%emt 0:00:08]} c5 {[%emt 0:00:26]} 6. d5 {[%emt 0:00:06]} exd5 {[%emt 0:00:37]} 7. cxd5 {[%emt 0:00:40]} Bxd5 {[%emt 0:06:03]} 8. O-O {[%emt 0:00:13]} Be7 {[%emt 0:02:05]} 9. Nc3 {[%emt 0:05:54]} Bc6 {[%emt 0:05:36]} 10. Nh4 {[%emt 0:17:34]} Bxg2 {[%emt 0:04:36]} 11. Kxg2 {[%emt 0:00:06]} d5 {[%emt 0:06:26]} 12. Nf5 {[%emt 0:00:08]} O-O {[%emt 0:00:56]} 13. e4 {[%emt 0:07:35]} dxe4 {[%emt 0:13:32]} 14. Nd5 {[%emt 0:06:59]} Nxd5 {[%emt 0:07:13]} 15. Qxd5 {[%emt 0:00:16]} Nd7 {[%emt 0:00:54]} 16. Qxe4 {[%emt 0:05:54]} Bf6 {[%emt 0:02:31]} 17. Rd1 {[%emt 0:04:12]} Qc8 {[%emt 0:06:18]} 18. Bf4 {[%emt 0:07:59]} c4 {[%emt 0:02:20]} 19. Nd6 {[%emt 0:07:44]} Nc5 {[%emt 0:01:10]} 20. Qd5 {[%emt 0:00:07]} Qe6 {[%emt 0:02:34]} 21. Nxc4 {[%emt 0:00:06]} Rfd8 {[%emt 0:04:14]} 22. Qxe6 {[%emt 0:02:31]} Nxe6 {[%emt 0:00:12]} 23. Be5 {[%emt 0:00:23]} Bxe5 {[%emt 0:03:26]} 24. Nxe5 {[%emt 0:00:05]} Rxd1 {[%emt 0:01:06]} 25. Rxd1 {[%emt 0:00:02]} Rd8 {[%emt 0:00:44]} 26. Rxd8+ {[%emt 0:00:06]} Nxd8 {[%emt 0:00:01]} 27. Kf3 {[%emt 0:00:06]} f6 {[%emt 0:00:49]} 28. Nd3 {[%emt 0:04:48]} Kf7 {[%emt 0:00:31]} 29. Ke4 {[%emt 0:00:04]} Ke6 {[%emt 0:00:42]} 30. b4 {[%emt 0:00:06]} a6 {[%emt 0:03:50]} 31. a4 {[%emt 0:00:17]} Nc6 {[%emt 0:03:44]} 32. g4 {[%emt 0:00:07] Ke5+} 1/2-1/2

[Event "30th Cracovia Festival-A 2019"]
[Site "Krakow"]
[Date "2020.01.03"]
[Round "8.12"]
[White "Milikow, Yoav"]
[Black "Goluch, Piotr"]
[Result "1-0"]
[ECO "E73"]
[WhiteElo "2236"]
[BlackElo "2415"]
[Annotator "NA RC"]
[PlyCount "42"]
[EventDate "2019.12.27"]
[EventCountry "POL"]
[SourceTitle "playchess.com"]
[Source "ChessBase"]
[SourceQuality "1"]
[TimeControl "40/5400+30:1800+30"]

1. d4 Nf6 2. c4 g6 3. Nc3 Bg7 4. e4 d6 5. Be2 O-O 6. Be3 e5 7. d5 a5 8. h4 Na6 9. h5 Nc5 10. Qc2 c6 11. h6 Bh8 12. Rd1 cxd5 13. Bxc5 dxc5 14. cxd5 a4 15. Nf3 a3 16. b3 Qa5 17. O-O Bg4 18. Nxe5 Bxe2 19. Nxe2 Rfe8 20. f4 Qb4 21. Ng3 Ra6 1-0

[Event "30th Cracovia Festival-A 2019"]
[Site "Krakow"]
[Date "2020.01.03"]
[Round "8.14"]
[White "Webersberger, Johann"]
[Black "Sanz Wawer, Daniel"]
[Result "1/2-1/2"]
[ECO "E11"]
[WhiteElo "2358"]
[BlackElo "2212"]
[Annotator "NA"]
[PlyCount "46"]
[EventDate "2019.12.27"]
[EventCountry "POL"]
[SourceTitle "playchess.com"]
[Source "ChessBase"]
[SourceQuality "1"]
[TimeControl "40/5400+30:1800+30"]

1. d4 {[%emt 0:00:00]} Nf6 {[%emt 0:00:00]} 2. Nf3 {[%emt 0:00:00]} e6 {[%emt 0:00:09]} 3. c4 {[%emt 0:01:18]} Bb4+ {[%emt 0:00:07]} 4. Nbd2 {[%emt 0:00:25]} O-O {[%emt 0:01:15]} 5. a3 {[%emt 0:00:14]} Bxd2+ {[%emt 0:01:13]} 6. Bxd2 {[%emt 0:00:04]} b6 {[%emt 0:01:31]} 7. Bg5 {[%emt 0:00:12]} Bb7 {[%emt 0:01:34]} 8. e3 {[%emt 0:03:51]} d6 {[%emt 0:02:12]} 9. Be2 {[%emt 0:01:19]} Nbd7 {[%emt 0:00:17]} 10. O-O {[%emt 0:00:25]} h6 {[%emt 0:00:18]} 11. Bh4 {[%emt 0:01:28]} g5 {[%emt 0:04:09]} 12. Bg3 {[%emt 0:08:19]} Ne4 {[%emt 0:01:01]} 13. Nd2 {[%emt 0:01:34]} Ndf6 {[%emt 0:06:09]} 14. Rc1 {[%emt 0:10:59]} Nxd2 {[%emt 0:11:46]} 15. Qxd2 {[%emt 0:00:02]} Ne4 {[%emt 0:00:18]} 16. Qc2 {[%emt 0:01:28]} Nxg3 {[%emt 0:05:21]} 17. fxg3 {[%emt 0:09:06]} Qe7 {[%emt 0:01:48]} 18. g4 {[%emt 0:00:30]} f5 {[%emt 0:05:57]} 19. Rf2 {[%emt 0:18:14]} Kg7 {[%emt 0:05:42]} 20. Rcf1 {[%emt 0:00:20]} Be4 {[%emt 0:06:14]} 21. Qd2 {[%emt 0:07:25]} Rf6 {[%emt 0:02:11]} 22. h3 {[%emt 0:04:28]} Raf8 {[%emt 0:02:08]} 23. b4 {[%emt 0:05:29]} fxg4 {[%emt 0:07:30]} 1/2-1/2